bitfinex-derivatives/quotes_BTCF0:USTF0_20210708
["timestamp","ask_amount","ask_price","bid_price","bid_amount"]
[1625755776608,5.86747975,32616.0,32615.0,0.24057544]
[1625755776759,7.18865643,32616.0,32615.0,0.24057544]
[1625755778712,7.42923187,32616.0,32615.0,0.24057544]
[1625755784046,6.42923187,32616.0,32615.0,0.24057544]
[1625755784497,6.42923187,32616.0,32615.0,0.46453544]
[1625755784652,5.94808099,32616.0,32615.0,0.46453544]
[1625755784815,4.32629643,32616.0,32615.0,0.46453544]
[1625755785247,4.32629643,32616.0,32615.0,0.82622801]
[1625755786374,2.88382533,32616.0,32615.0,1.00706818]
[1625755788252,2.34278599,32616.0,32615.0,1.00706818]
[1625755788553,2.88465757,32616.0,32615.0,1.00706818]
[1625755789003,2.88465757,32616.0,32615.0,0.78310818]
[1625755789153,4.32896376,32616.0,32615.0,0.24057544]
[1625755790894,5.95398033,32616.0,32615.0,0.24057544]
[1625755791931,6.95398033,32616.0,32615.0,0.24057544]
[1625755792908,7.19455577,32616.0,32615.0,0.24057544]
[1625755793205,6.19455577,32616.0,32615.0,0.24057544]
[1625755794108,4.5695392,32616.0,32615.0,0.24057544]
[1625755794632,4.5695392,32616.0,32615.0,0.42145771]
[1625755797933,4.5695392,32616.0,32615.0,0.78331246]
[1625755798158,4.5695392,32616.0,32615.0,0.42145771]
[1625755798610,4.5695392,32616.0,32615.0,0.78336111]
[1625755803488,4.5695392,32616.0,32615.0,0.47676111]
[1625755804537,4.5695392,32616.0,32615.0,0.44306111]
[1625755804687,4.5695392,32616.0,32615.0,0.41586111]
[1625755805139,4.5695392,32616.0,32615.0,0.05395771]
[1625755805447,6.19109801,32616.0,32615.0,0.05395771]
[1625755805743,4.5695392,32616.0,32615.0,0.41603774]
[1625755806492,5.29038835,32616.0,32615.0,0.41603774]
[1625755806639,5.52003835,32616.0,32615.0,0.41603774]
[1625755806789,7.14149011,32616.0,32614.0,0.89499934]
[1625755806939,7.38206555,32616.0,32614.0,0.89499934]
[1625755807090,4.50390882,32615.0,32614.0,0.89499934]
[1625755807240,4.50390882,32615.0,32614.0,0.36211937]
[1625755807541,8.72560882,32615.0,32614.0,0.36211937]
[1625755809042,8.72560882,32615.0,32614.0,0.72422285]
[1625755809341,8.72560882,32615.0,32614.0,1.81055412]
[1625755809492,8.72560882,32615.0,32614.0,0.72422285]
[1625755810017,8.72560882,32615.0,32613.0,0.96486603]
[1625755810316,4.2217,32615.0,32613.0,0.24057544]
[1625755810466,4.49567598,32614.0,32613.0,0.96487678]
[1625755810769,4.49567598,32614.0,32613.0,2.05133068]
[1625755811235,3.05711001,32614.0,32613.0,2.05133068]
[1625755811521,3.05711001,32614.0,32613.0,3.31875926]
[1625755811672,1.79834231,32614.0,32613.0,4.76719194]
[1625755813095,1.80294231,32614.0,32613.0,4.76719194]
[1625755813322,1.80294231,32614.0,32613.0,3.31875926]
[1625755813470,3.06229785,32614.0,32613.0,2.05133068]
[1625755813620,3.06229785,32614.0,32613.0,3.31875898]
[1625755813982,3.35139785,32614.0,32613.0,3.07818354]
[1625755813997,3.35139785,32614.0,32611.0,1.44849455]
[1625755813998,7.40600103,32614.0,32612.0,0.36215865]
[1625755814097,3.5922625,32613.0,32612.0,0.36215865]
[1625755814221,6.10682829,32613.0,32610.0,0.36218363]
[1625755814371,6.11142829,32613.0,32610.0,0.36218363]
[1625755814673,6.10570451,32611.0,32609.0,0.36221936]
[1625755814823,0.0046,32613.0,32608.0,0.36223808]
[1625755814824,6.10400226,32610.0,32608.0,0.36223808]
[1625755814972,0.48115088,32609.0,32608.0,0.36223808]
[1625755815123,4.96910034,32609.0,32608.0,0.36223808]
[1625755815275,6.58497926,32609.0,32606.0,0.72448477]
[1625755815798,4.48680905,32607.0,32605.0,0.96507508]
[1625755815952,9.95453905,32607.0,32605.0,0.96507508]
[1625755816098,4.48674492,32606.0,32605.0,1.32730782]
[1625755816399,4.48674492,32606.0,32605.0,0.96498]
[1625755816775,4.48674492,32606.0,32605.0,0.72440456]
[1625755816926,4.72732036,32606.0,32605.0,0.72440456]
[1625755817455,4.72732036,32606.0,32605.0,1.81114979]
[1625755817753,4.73192036,32606.0,32605.0,1.81114979]
[1625755817904,3.29621223,32606.0,32605.0,1.81114979]
[1625755819405,2.03994519,32606.0,32605.0,4.52773235]
[1625755819555,0.96311923,32606.0,32605.0,4.52773235]
[1625755819706,0.96311923,32606.0,32605.0,9.50573235]
[1625755820009,0.24517544,32606.0,32605.0,9.50573235]
[1625755820907,0.24517544,32606.0,32605.0,9.74630779]
[1625755821062,0.24517544,32606.0,32605.0,11.37638265]
[1625755821808,0.24517544,32606.0,32605.0,11.67219265]
[1625755822106,0.24057544,32606.0,32605.0,11.67219265]
[1625755823243,0.24057544,32606.0,32605.0,10.04211779]
[1625755823419,0.24057544,32606.0,32605.0,9.74630779]
[1625755823536,0.24057544,32606.0,32605.0,11.37655738]
[1625755824212,0.96103135,32606.0,32605.0,9.74630779]
[1625755824514,2.04120421,32606.0,32605.0,9.74630779]
[1625755824665,0.96103135,32606.0,32605.0,9.74630779]
[1625755824965,0.24057544,32606.0,32605.0,9.74630779]
[1625755825864,0.24057544,32606.0,32605.0,11.37667479]
[1625755827296,0.96103265,32606.0,32605.0,9.74630779]
[1625755828045,2.04105302,32606.0,32605.0,4.76830779]
[1625755828348,3.30070476,32606.0,32605.0,4.76830779]
[1625755828645,3.30070476,32606.0,32605.0,3.07888832]
[1625755828797,5.73903432,32606.0,32605.0,1.81114979]
[1625755829095,5.73903432,32606.0,32605.0,0.72440456]
[1625755829844,5.73903432,32606.0,32604.0,0.72484883]
[1625755829994,4.49127709,32605.0,32604.0,0.72484883]
[1625755830670,4.49127709,32605.0,32603.0,0.72461744]
[1625755830895,4.48897233,32604.0,32603.0,0.72461744]
[1625755831046,4.95687777,32604.0,32602.0,1.08692617]
[1625755831348,4.48901457,32603.0,32602.0,1.08692617]
[1625755831648,3.05258018,32603.0,32602.0,1.8115383]
[1625755831797,3.05258018,32603.0,32602.0,3.07961243]
[1625755832100,3.05258018,32603.0,32602.0,1.8115383]
[1625755832625,4.48828258,32603.0,32602.0,0.72461213]
[1625755832999,4.48828258,32603.0,32602.0,1.81141172]
[1625755835030,4.49288258,32603.0,32602.0,1.81141172]
[1625755835931,4.49288258,32603.0,32602.0,0.72461213]
[1625755836381,4.49288258,32603.0,32601.0,0.72415557]
[1625755836535,3.04515468,32602.0,32601.0,0.72415557]
[1625755837585,3.04975468,32602.0,32601.0,1.81034225]
[1625755838635,3.04975468,32602.0,32601.0,0.72415557]
[1625755841566,1.7959096,32602.0,32601.0,1.80984835]
[1625755841717,3.04866519,32602.0,32601.0,0.72415557]
[1625755843244,1.7959096,32602.0,32601.0,0.72415557]
[1625755843516,1.7959096,32602.0,32601.0,1.80963028]
[1625755844944,1.7959096,32602.0,32601.0,0.72415557]
[1625755846296,3.04728201,32602.0,32601.0,0.72415557]
[1625755846445,3.04728201,32602.0,32600.0,0.96407772]
[1625755846744,1.78693205,32601.0,32600.0,0.96407772]
[1625755847195,1.78693205,32601.0,32600.0,2.04939127]
[1625755847347,6.16813205,32601.0,32600.0,2.04939127]
[1625755848173,5.09600855,32601.0,32600.0,2.04939127]
[1625755848623,4.3812,32601.0,32600.0,3.31545658]
[1625755849302,5.09472654,32601.0,32600.0,2.04939127]
[1625755849604,4.3812,32601.0,32600.0,3.31546176]
[1625755849750,5.09446511,32601.0,32600.0,2.04939127]
[1625755850802,6.16408038,32601.0,32600.0,2.04939127]
[1625755850951,5.09446511,32601.0,32600.0,2.04939127]
[1625755851253,6.16430242,32601.0,32600.0,2.04939127]
[1625755851403,6.47327242,32601.0,32600.0,2.04939127]
[1625755852689,5.40343511,32601.0,32600.0,2.04939127]
[1625755852832,5.09446511,32601.0,32600.0,2.04939127]
[1625755854635,4.3812,32601.0,32600.0,3.3153119]
[1625755855386,5.0958496,32601.0,32600.0,2.04939127]
[1625755857113,6.16828615,32601.0,32600.0,2.04939127]
[1625755863043,6.40704615,32601.0,32600.0,2.04939127]
[1625755865895,6.16828615,32601.0,32600.0,2.04939127]
[1625755868375,6.16828615,32601.0,32600.0,3.31631212]
[1625755869126,5.0958496,32601.0,32600.0,3.31631212]
[1625755869277,6.16594516,32601.0,32600.0,3.31631212]
[1625755869806,1.78474516,32601.0,32600.0,3.64457212]
[1625755870166,0.7146496,32601.0,32600.0,3.64457212]
[1625755870254,0.0894571,32602.0,32600.0,5.09262822]
[1625755870466,0.71440691,32604.0,32600.0,5.09262822]
[1625755870591,0.71453142,32605.0,32603.0,4.3054]
[1625755870737,0.71453142,32605.0,32604.0,1.4479863]
[1625755870855,1.00757023,32606.0,32604.0,4.52495719]
[1625755871004,0.71467023,32606.0,32604.0,4.52495719]
[1625755871172,0.71467023,32606.0,32605.0,0.48115088]
[1625755871335,0.71467023,32606.0,32605.0,3.55807705]
[1625755871465,1.78662946,32607.0,32605.0,3.55807705]
[1625755871625,0.71471342,32607.0,32605.0,5.00599291]
[1625755871756,0.71471342,32607.0,32606.0,4.52464081]
[1625755871983,0.71488257,32608.0,32606.0,4.52464081]
[1625755872282,1.07283291,32608.0,32607.0,4.52672097]
[1625755872431,1.07283291,32608.0,32607.0,4.76750097]
[1625755872584,1.78812273,32608.0,32607.0,4.76750097]
[1625755872732,1.78812273,32608.0,32607.0,8.84160097]
[1625755872957,0.71528982,32608.0,32607.0,8.84160097]
[1625755873260,0.71528982,32608.0,32607.0,9.08217641]
[1625755873706,1.873e-05,32609.0,32607.0,9.08217641]
[1625755873858,1.873e-05,32609.0,32608.0,1.44829176]
[1625755874006,1.25639025,32612.0,32608.0,2.71554705]
[1625755874007,1.02398442,32612.0,32608.0,2.71554705]
[1625755874458,0.24057544,32613.0,32609.0,1.44828559]
[1625755874607,0.24057544,32613.0,32610.0,1.44832316]
[1625755874907,0.2929,32614.0,32610.0,1.44832316]
[1625755875208,0.2929,32614.0,32612.0,0.24057544]
[1625755875356,0.2929,32614.0,32612.0,5.54207544]
[1625755876935,0.2929,32614.0,32612.0,0.24057544]
[1625755877240,0.53347544,32614.0,32613.0,0.24057544]
[1625755882714,0.53347544,32614.0,32613.0,0.58489544]
[1625755893536,0.53347544,32614.0,32613.0,0.24057544]
[1625755893987,0.83980544,32614.0,32613.0,0.24057544]
[1625755894289,2.09448681,32614.0,32613.0,0.24057544]
[1625755895037,3.52828637,32614.0,32613.0,0.24057544]
[1625755896161,2.09448681,32614.0,32613.0,0.24057544]
[1625755896840,2.63185106,32614.0,32613.0,0.24057544]
[1625755899915,1.37716969,32614.0,32613.0,0.24057544]
[1625755900065,2.63222807,32614.0,32613.0,0.24057544]
[1625755900365,1.37716969,32614.0,32613.0,0.78274215]
[1625755900516,2.63241118,32614.0,32613.0,0.24057544]
[1625755901267,1.37716969,32614.0,32613.0,0.78274257]
[1625755902095,2.63338672,32614.0,32613.0,0.24057544]
[1625755902246,1.37716969,32614.0,32613.0,0.78274651]
[1625755902468,2.63344757,32614.0,32613.0,0.78274651]
[1625755902694,2.63344757,32614.0,32613.0,0.24057544]
[1625755904197,3.7105388,32614.0,32613.0,0.24057544]
[1625755904346,3.7105388,32614.0,32613.0,0.78277297]
[1625755905924,3.7105388,32614.0,32613.0,0.24057544]
[1625755906525,2.45426092,32614.0,32613.0,0.78280975]
[1625755907500,2.16136092,32614.0,32613.0,0.78280975]
[1625755908853,2.16136092,32614.0,32613.0,1.8673521]
[1625755913582,1.08426969,32614.0,32613.0,1.8673521]
[1625755913733,0.77793969,32614.0,32613.0,1.8673521]
[1625755914482,0.77793969,32614.0,32613.0,2.2022321]
[1625755915234,0.77793969,32614.0,32613.0,6.3916321]
[1625755915908,0.24057544,32614.0,32613.0,4.76485544]
[1625755916283,0.78183512,32614.0,32613.0,6.39201084]
[1625755917185,1.86435326,32614.0,32613.0,6.39201084]
[1625755918011,1.86435326,32614.0,32613.0,7.65780586]
[1625755918688,0.78183512,32614.0,32613.0,7.65780586]
[1625755920037,1.86449911,32614.0,32613.0,7.65780586]
[1625755921539,1.86449911,32614.0,32613.0,3.46840586]
[1625755922851,2.18016911,32614.0,32613.0,3.13352586]
[1625755923416,3.62306741,32614.0,32613.0,3.13352586]
[1625755923568,4.88562596,32614.0,32613.0,0.78296057]
[1625755923718,4.88562596,32614.0,32612.0,0.24057544]
[1625755923719,4.88562596,32614.0,32612.0,0.54283579]
[1625755924018,4.32765908,32613.0,32612.0,0.54283579]
[1625755924169,4.32765908,32613.0,32611.0,0.54283768]
[1625755924619,4.32920156,32612.0,32610.0,1.08567157]
[1625755924769,2.88653336,32611.0,32610.0,1.08567157]
[1625755924920,7.60493336,32611.0,32610.0,1.08567157]
[1625755925070,7.60493336,32611.0,32610.0,1.62874718]
[1625755925370,7.60493336,32611.0,32610.0,2.89590822]
[1625755925522,7.8455088,32611.0,32610.0,2.89590822]
[1625755927398,9.2909431,32611.0,32610.0,2.89590822]
[1625755928299,7.8455088,32611.0,32610.0,4.34575041]
[1625755928825,7.8455088,32611.0,32610.0,2.89590822]
[1625755929578,9.29057685,32611.0,32610.0,4.34690101]
[1625755932054,9.29057685,32611.0,32610.0,2.89590822]
[1625755932581,9.29057685,32611.0,32610.0,4.34711781]
[1625755933708,10.0130125,32611.0,32610.0,5.07272455]
[1625755934009,8.56794445,32611.0,32610.0,11.70137677]
[1625755934160,3.84954445,32611.0,32610.0,12.03705677]
[1625755934764,2.34616703,32611.0,32610.0,12.03705677]
[1625755935062,1.26439057,32612.0,32610.0,12.03705677]
[1625755935215,0.54266869,32614.0,32610.0,13.85069855]
[1625755935359,0.72349798,32615.0,32610.0,13.85069855]
[1625755935360,0.36188604,32615.0,32611.0,8.52377068]
[1625755935510,0.36188604,32615.0,32610.0,5.33178]
[1625755935511,0.90453566,32615.0,32614.0,7.43179116]
[1625755935809,0.36188604,32615.0,32614.0,7.43179116]
[1625755936110,0.90430828,32616.0,32614.0,7.43179116]
[1625755936259,0.36162858,32616.0,32615.0,6.70578491]
[1625755936710,0.90357541,32617.0,32615.0,6.70578491]
[1625755937015,0.36124311,32616.0,32614.0,0.72172632]
[1625755937315,0.90348165,32617.0,32615.0,6.70569071]
[1625755937461,0.90348165,32617.0,32616.0,5.25559074]
[1625755937612,0.90348165,32617.0,32616.0,6.94598431]
[1625755938064,0.36116025,32617.0,32616.0,6.94598431]
[1625755938221,1.30786377,32619.0,32616.0,8.75721367]
[1625755938365,0.36069818,32621.0,32616.0,8.75721367]
[1625755938518,1.26199297,32625.0,32618.0,7.42554959]
[1625755938519,0.54112809,32624.0,32618.0,7.42554959]
[1625755938664,0.54112809,32624.0,32618.0,7.72422959]
[1625755938821,0.54135757,32626.0,32624.0,4.3465]
[1625755938964,1.26321419,32626.0,32625.0,5.61415567]
[1625755939180,1.26321419,32626.0,32625.0,5.96650567]
[1625755939264,0.48001369,32627.0,32625.0,5.96650567]
[1625755939419,1.26373319,32630.0,32625.0,5.96650567]
[1625755939573,1.44331953,32631.0,32629.0,0.72172632]
[1625755939574,1.26417091,32631.0,32629.0,0.72172632]
[1625755939714,0.24057544,32638.0,32629.0,0.72172632]
[1625755939715,1.26455529,32632.0,32630.0,2.71627014]
[1625755940015,1.26267937,32634.0,32631.0,1.26553306]
[1625755940165,1.26267937,32634.0,32631.0,6.19983306]
[1625755940315,1.26264413,32635.0,32632.0,1.26552838]
[1625755940465,1.26264413,32635.0,32632.0,1.50300838]
[1625755941365,1.44295088,32637.0,32633.0,1.26549903]
[1625755941366,1.26296236,32636.0,32633.0,1.26549903]
[1625755941518,1.26296236,32636.0,32635.0,0.48115088]
[1625755941816,1.26296236,32636.0,32635.0,0.48575088]
[1625755942117,1.26163415,32638.0,32635.0,0.48575088]
[1625755943634,1.26163415,32638.0,32637.0,0.24057544]
[1625755944221,1.26080613,32639.0,32637.0,0.24057544]
[1625755944698,1.86156044,32644.0,32638.0,5.1775]
[1625755944699,1.2626605,32640.0,32638.0,5.1775]
[1625755944971,1.2626605,32640.0,32639.0,0.0046]
[1625755945123,1.2626605,32640.0,32639.0,0.28189]
[1625755945583,1.2626605,32640.0,32639.0,0.52246544]
[1625755946330,1.26153118,32641.0,32639.0,0.52246544]
[1625755947825,1.26054334,32642.0,32639.0,0.52246544]
[1625755949632,1.26054334,32642.0,32641.0,0.24057544]
[1625755951579,1.25964011,32643.0,32641.0,0.24057544]
[1625755951892,1.25964746,32642.0,32641.0,0.24057544]
[1625755952050,1.52578746,32642.0,32641.0,0.24057544]
[1625755952780,0.26614,32642.0,32641.0,0.24057544]
[1625755953231,1.49979213,32644.0,32641.0,0.24057544]
[1625755953383,1.49979213,32644.0,32641.0,0.57564544]
[1625755953683,1.25904512,32643.0,32641.0,0.57564544]
[1625755955410,1.49913916,32644.0,32641.0,0.57564544]
[1625755955934,0.24057544,32644.0,32641.0,0.57564544]
[1625755960366,1.49807267,32644.0,32641.0,0.57564544]
[1625755967349,0.24057544,32644.0,32641.0,0.57564544]
[1625755968398,1.07765508,32643.0,32641.0,0.57564544]
[1625755968700,1.31822809,32644.0,32641.0,0.57564544]
[1625755969155,0.17974938,32642.0,32641.0,0.57564544]
[1625755970356,1.07764166,32643.0,32641.0,0.57564544]
[1625755970876,1.31819828,32644.0,32641.0,0.57564544]
[1625755971627,1.07765006,32643.0,32641.0,0.57564544]
[1625755973053,1.3182388,32644.0,32641.0,0.57564544]
[1625755973204,1.3182388,32644.0,32641.0,0.24057544]
[1625755973504,1.07774465,32643.0,32641.0,0.24057544]
[1625755974553,1.49791707,32644.0,32641.0,0.24057544]
[1625755974554,1.07779365,32642.0,32641.0,0.24057544]
[1625755976654,1.0779552,32643.0,32641.0,0.24057544]
[1625755978908,1.07823548,32642.0,32641.0,0.24057544]
[1625755980185,1.07823548,32642.0,32637.0,0.24057544]
[1625755980335,0.17986143,32639.0,32635.0,0.24057544]
[1625755980485,0.17986143,32639.0,32631.0,0.18251356]
[1625755980635,0.1798674,32637.0,32631.0,0.0046]
[1625755980936,0.17987397,32636.0,32631.0,0.0046]
[1625755981086,0.18447397,32636.0,32628.0,0.178082]
[1625755981537,3.8712,32631.0,32628.0,0.178082]
[1625755981685,3.8712,32631.0,32630.0,0.24057544]
[1625755981686,4.17215,32631.0,32630.0,0.24057544]
[1625755981836,4.41272544,32631.0,32630.0,0.24057544]
[1625755983786,4.65330088,32631.0,32630.0,0.24057544]
[1625755986189,4.65330088,32631.0,32630.0,0.41900904]
[1625755986638,4.65330088,32631.0,32630.0,0.24057544]
[1625755987388,4.65330088,32631.0,32630.0,0.41881342]
[1625755988141,4.65330088,32631.0,32630.0,0.24057544]
[1625755989567,4.65330088,32631.0,32630.0,0.41855577]
[1625755989865,4.65330088,32631.0,32630.0,0.24057544]
[1625755990016,4.83382957,32631.0,32630.0,0.41859145]
[1625755990767,4.65330088,32631.0,32630.0,0.41859145]
[1625755991074,4.83382889,32631.0,32630.0,0.41859145]
[1625755991274,4.65330088,32631.0,32630.0,0.24057544]
[1625755991369,4.35235088,32631.0,32630.0,0.24057544]
[1625755991519,4.35235088,32631.0,32630.0,1.30631801]
[1625755991819,0.48115088,32631.0,32630.0,1.54965801]
[1625755992015,0.48115088,32631.0,32630.0,4.21573065]
[1625755992269,0.24057544,32631.0,32630.0,4.21573065]
[1625755992721,0.18074803,32635.0,32630.0,4.21573065]
[1625755993169,0.18074803,32635.0,32634.0,2.30862775]
[1625755993321,0.18074803,32635.0,32634.0,1.0655205]
[1625755993771,0.18074803,32635.0,32634.0,1.30609594]
[1625755993923,0.473652,32636.0,32634.0,2.54797682]
[1625755994146,0.2929,32636.0,32635.0,2.30942029]
[1625755995501,0.2929,32636.0,32635.0,3.72953893]
[1625755995652,0.2929,32636.0,32635.0,5.32624203]
[1625755995802,0.2929,32636.0,32635.0,5.56681747]
[1625755995953,0.18095181,32639.0,32635.0,5.56681747]
[1625755996253,0.18095181,32639.0,32638.0,3.73080897]
[1625755996401,0.18095181,32639.0,32638.0,4.07614897]
[1625755997002,0.1810742,32640.0,32638.0,5.67525042]
[1625755997170,0.1810742,32640.0,32639.0,2.30977498]
[1625755997302,0.18107051,32641.0,32639.0,3.73117497]
[1625755997455,0.18376811,32642.0,32639.0,5.32984383]
[1625755997752,0.18376811,32642.0,32641.0,3.72860133]
[1625755997904,0.18376811,32642.0,32641.0,4.20975221]
[1625755999403,0.18376811,32642.0,32641.0,4.91963665]
[1625755999853,0.18376811,32642.0,32641.0,9.26373665]
[1625756000167,0.0027,32642.0,32641.0,9.26373665]
[1625756000455,0.72638011,32642.0,32641.0,9.26373665]
[1625756001429,0.0027,32642.0,32641.0,9.26373665]
[1625756002706,0.72617481,32642.0,32641.0,7.8433171]
[1625756003009,0.0027,32642.0,32641.0,9.26018679]
[1625756003157,0.18369911,32642.0,32641.0,9.26018679]
[1625756004058,0.0027,32642.0,32641.0,9.26018679]
[1625756004582,0.0027,32642.0,32641.0,7.8433171]
[1625756005034,0.18365058,32642.0,32641.0,9.25984664]
[1625756005336,0.0027,32642.0,32641.0,9.25984664]
[1625756011265,0.0027,32642.0,32641.0,4.91574664]
[1625756011415,0.0027,32642.0,32641.0,4.6751712]
[1625756011565,0.31017,32642.0,32641.0,4.6751712]
[1625756011714,0.31017,32642.0,32641.0,3.25864166]
[1625756011865,5.58274544,32642.0,32641.0,3.25864166]
[1625756012017,6.30528786,32642.0,32641.0,0.95045988]
[1625756012167,7.38901941,32642.0,32641.0,0.4170707]
[1625756012542,2.35701941,32642.0,32641.0,0.4170707]
[1625756012993,1.27328786,32642.0,32641.0,0.94622323]
[1625756013144,1.27328786,32642.0,32641.0,5.78162323]
[1625756013294,0.73150634,32642.0,32641.0,6.83911499]
[1625756013448,0.42403634,32642.0,32641.0,6.83911499]
[1625756013969,0.24327544,32642.0,32641.0,8.07269364]
[1625756017347,0.24327544,32642.0,32641.0,9.48168659]
[1625756017948,0.24057544,32642.0,32641.0,9.72226203]
[1625756018475,0.24057544,32642.0,32641.0,11.3051855]
[1625756018712,0.24057544,32642.0,32641.0,9.72226203]
[1625756019824,0.24057544,32642.0,32641.0,11.30552878]
[1625756020574,0.24057544,32642.0,32641.0,9.72226203]
[1625756021101,0.24057544,32642.0,32641.0,11.30533821]
[1625756021627,0.24057544,32642.0,32641.0,9.72226203]
[1625756026518,0.24057544,32647.0,32641.0,10.03174203]
[1625756026519,0.1805589,32647.0,32641.0,10.03174203]
[1625756026675,0.59428141,32649.0,32641.0,10.53174203]
[1625756026903,0.9606,32677.0,32641.0,10.53174203]
[1625756026904,1.26269408,32659.0,32646.0,5.98651548]
[1625756027566,0.13160482,32654.0,32653.0,4.56583096]
[1625756027597,0.18048547,32663.0,32653.0,2.71258771]
[1625756027624,0.67388645,32665.0,32653.0,2.71258771]
[1625756027654,1.44262165,32669.0,32653.0,4.46513883]
[1625756027683,0.18044996,32669.0,32666.0,4.286]
[1625756027975,0.17998682,32679.0,32667.0,0.5]
[1625756028003,0.16496197,32684.0,32668.0,4.70103406]
[1625756028062,0.17993385,32688.0,32683.0,0.96230176]
[1625756028295,0.17993385,32688.0,32683.0,1.20775176]
[1625756028396,0.71919614,32689.0,32684.0,0.17374696]
[1625756028397,0.17992791,32689.0,32684.0,0.17374696]
[1625756028516,0.17992791,32689.0,32685.0,0.5]
[1625756028687,0.17991573,32692.0,32687.0,0.17360671]
[1625756028828,0.17990395,32694.0,32691.0,4.5297]
[1625756028908,0.17990395,32694.0,32691.0,4.80025]
[1625756029066,0.17987733,32696.0,32691.0,4.80025]
[1625756029359,0.17986508,32698.0,32692.0,0.17326768]
[1625756029511,1.25797747,32702.0,32693.0,0.5]
[1625756029662,0.77774252,32704.0,32693.0,0.5046]
[1625756029881,0.24057544,32704.0,32693.0,0.5046]
[1625756029959,0.24057544,32704.0,32693.0,0.0046]
[1625756030212,0.48115088,32694.0,32693.0,0.24517544]
[1625756030259,0.24057544,32701.0,32693.0,0.24517544]
[1625756030414,0.24057544,32701.0,32693.0,0.50107544]
[1625756031610,0.24057544,32701.0,32693.0,0.24517544]
[1625756031983,0.24057544,32701.0,32698.0,0.24057544]
[1625756032677,1.24998647,32707.0,32698.0,0.52924544]
[1625756032705,0.53566938,32714.0,32698.0,0.52924544]
[1625756033171,0.07556938,32714.0,32698.0,0.52924544]
[1625756033201,1.42815417,32719.0,32698.0,0.52924544]
[1625756033202,0.38076528,32727.0,32702.0,1.19799526]
[1625756033294,0.59194159,32734.0,32708.0,1.0242447]
[1625756033904,0.52215028,32732.0,32709.0,1.69495215]
[1625756033927,0.52215028,32732.0,32715.0,1.0]
[1625756033935,0.53522287,32739.0,32716.0,1.01094898]
[1625756033974,0.08,32742.0,32719.0,1.17981418]
[1625756034102,0.08,32742.0,32738.0,0.96230176]
[1625756034241,0.08,32742.0,32738.0,1.23179176]
[1625756034387,0.08,32742.0,32739.0,0.5]
[1625756034750,0.53141606,32763.0,32738.0,1.23179176]
[1625756034842,1.65738979,32768.0,32739.0,0.015]
[1625756034843,0.70841143,32765.0,32739.0,0.015]
[1625756035140,0.70841143,32765.0,32738.0,1.23179176]
[1625756035290,1.0,32765.0,32740.0,0.0046]
[1625756035609,0.24057544,32768.0,32740.0,0.0046]
[1625756035909,0.94882203,32768.0,32740.0,0.0046]
[1625756036041,0.24057544,32760.0,32752.0,0.96230176]
[1625756037242,0.24057544,32760.0,32752.0,1.25592176]
[1625756037393,0.24057544,32766.0,32752.0,1.34862176]
[1625756037692,0.24057544,32766.0,32752.0,1.25592176]
[1625756038741,0.24057544,32766.0,32752.0,1.34642176]
[1625756040091,0.24057544,32762.0,32752.0,1.34642176]
[1625756041069,0.48115088,32771.0,32752.0,1.34642176]
[1625756042121,0.24057544,32766.0,32752.0,0.96230176]
[1625756042271,1.27866,32753.0,32752.0,0.96230176]
[1625756044149,0.942,32753.0,32752.0,1.23324176]
[1625756044450,0.942,32753.0,32752.0,1.32514176]
[1625756044602,0.942,32753.0,32752.0,1.23324176]
[1625756045358,1.20746,32753.0,32752.0,0.96230176]
[1625756046401,0.942,32753.0,32752.0,0.96230176]
[1625756046702,1.18732,32753.0,32752.0,0.96230176]
[1625756048203,0.942,32753.0,32752.0,0.96230176]
[1625756048803,1.25729,32753.0,32752.0,0.96230176]
[1625756049014,1.25729,32753.0,32752.0,0.72172632]
[1625756052300,1.25729,32753.0,32752.0,0.48115088]
[1625756052405,1.25729,32753.0,32743.0,3.9875]
[1625756052555,1.25729,32753.0,32713.0,0.5]
[1625756052705,1.25729,32753.0,32717.0,1.4776]
[1625756053005,1.25729,32753.0,32725.0,0.5]
[1625756053159,1.25729,32753.0,32717.0,0.9776]
[1625756053456,1.31429,32753.0,32717.0,0.9776]
[1625756053606,1.25729,32753.0,32720.0,0.5907]
[1625756054056,1.25729,32753.0,32724.0,8.8573]
[1625756054209,0.24057544,32745.0,32743.0,0.24057544]
[1625756059687,0.56732544,32745.0,32743.0,0.24057544]
[1625756060667,0.56732544,32745.0,32737.0,0.24057544]
[1625756060952,0.56732544,32745.0,32718.0,0.057]
[1625756061082,0.56732544,32745.0,32702.0,0.08178297]
[1625756061224,0.56732544,32745.0,32700.0,0.50153399]
[1625756061337,0.56732544,32745.0,32700.0,0.1742268]
[1625756061642,0.24057544,32748.0,32700.0,0.1742268]
[1625756061643,0.24057544,32748.0,32700.0,0.50147422]
[1625756061791,0.24057544,32748.0,32725.0,0.5]
[1625756062237,0.24057544,32748.0,32747.0,5.97232632]
[1625756062390,0.942,32753.0,32747.0,6.20594632]
[1625756063590,0.942,32753.0,32747.0,6.70594632]
[1625756063890,0.461,32753.0,32747.0,6.70594632]
[1625756064195,0.461,32753.0,32752.0,0.48115088]
[1625756064343,0.24057544,32761.0,32752.0,0.98115088]
[1625756065319,0.24057544,32761.0,32752.0,1.07175088]
[1625756066067,0.24057544,32767.0,32753.0,0.0046]
[1625756066217,0.24057544,32767.0,32766.0,0.48115088]
[1625756066391,0.24057544,32767.0,32766.0,0.80104088]
[1625756071171,0.24057544,32767.0,32766.0,0.48115088]
[1625756071474,0.51847544,32767.0,32766.0,0.48115088]
[1625756074550,0.24057544,32767.0,32766.0,0.48115088]
[1625756077553,0.24057544,32767.0,32766.0,0.82938088]
[1625756079807,0.24057544,32767.0,32766.0,0.48115088]
[1625756083863,0.24057544,32767.0,32766.0,0.24057544]
[1625756084013,0.52659544,32767.0,32760.0,0.0046]
[1625756084337,0.24057544,32761.0,32760.0,0.0046]
[1625756084917,0.24057544,32761.0,32759.0,0.24057544]
[1625756086265,0.24057544,32761.0,32760.0,0.24057544]
[1625756091820,0.24057544,32761.0,32760.0,0.91612189]
[1625756092133,0.24057544,32761.0,32760.0,0.24057544]
[1625756092440,0.24057544,32761.0,32760.0,0.91607198]
[1625756092883,0.24057544,32761.0,32760.0,2.2560005]
[1625756093059,0.24057544,32761.0,32760.0,3.43732531]
[1625756093394,0.24057544,32761.0,32760.0,3.93732531]
[1625756093699,0.24057544,32767.0,32760.0,3.93732531]
[1625756093995,0.24057544,32767.0,32765.0,0.67508457]
[1625756094147,0.24057544,32767.0,32765.0,0.76608457]
[1625756094295,0.24057544,32767.0,32766.0,0.67501651]
[1625756094445,0.24057544,32767.0,32766.0,0.91559195]
[1625756095723,0.24057544,32767.0,32766.0,0.5780213]
[1625756095985,0.24057544,32767.0,32766.0,0.24057544]
[1625756098950,0.24057544,32767.0,32766.0,0.66180239]
[1625756099549,0.24057544,32767.0,32766.0,0.32482083]
[1625756099699,0.24057544,32767.0,32766.0,0.24057544]
[1625756100001,0.24057544,32767.0,32766.0,0.32482564]
[1625756100526,0.24057544,32767.0,32766.0,0.24057544]